[Event "46th Barbera del Valles Open-A 2024"]
[Site "Barbera del Valles"]
[Date "2024.07.06"]
[Round "3.5"]
[White "Vedant Rupeshbhai Varasada"]
[Black "Kaustuv, Kundu"]
[Result "1-0"]
[ECO "C45"]
[WhiteElo "1860"]
[BlackElo "2403"]
[Annotator "TA"]
[PlyCount "53"]
[EventDate "2024.06.25"]
[EventType "swiss"]
[EventCountry "ESP"]
[SourceTitle "playchess.com"]
[Source "ChessBase"]
[SourceQuality "1"]
[TimeControl "5400+30"]

{[%evp 17,53,-12,-14,-18,-18,-17,-40,-35,30,45,193,198,267,265,258,179,190,175,189,141,147,141,152,95,192,160,205,128,121,31,139,154,550,540,522,515,29982,29983]} 1. e4 {[%emt 0:00:09]} e5 {[%emt 0:15:06]} 2. Nf3 {[%emt 0:00:07]} Nc6 {[%emt 0:00:06]} 3. d4 {[%emt 0:00:05]} exd4 {[%emt 0:00:09]} 4. Nxd4 {[%emt 0:00:05]} Nf6 {[%emt 0:00:07]} 5. Nxc6 {[%emt 0:00:05]} bxc6 {[%emt 0:00:08]} 6. e5 {[%emt 0:00:05]} Qe7 {[%emt 0:00:06]} 7. Qe2 {[%emt 0:00:04]} Nd5 {[%emt 0:00:08]} 8. c4 {[%emt 0:00:06]} Ba6 {[%emt 0:00:40]} 9. Nd2 {[%emt 0:00:32]} g6 {[%emt 0:00:11]} 10. Ne4 {[%emt 0:00:24] [#] aiming for Qc2.} O-O-O {[%emt 0:01:46]} (10... Qxe5 $2 11. Nf6+ Nxf6 12. Qxe5+ $18) 11. Qc2 {[%emt 0:06:27]} Nb4 {[%emt 0:19:04]} 12. Qc3 {[%emt 0:03:58] Black is slightly better.} Re8 {[%emt 0:06:19]} (12... Qh4 $1 $15 13. Nd6+ Bxd6 14. exd6 c5) 13. f4 $1 $11 {[%emt 0:25:44] And now a3 would win.} d5 {[%emt 0:16:36] [#]} (13... c5 $1 $14) 14. a3 $1 $18 {[%emt 0:22:37]} (14. cxd5 cxd5 15. Ng5 Bxf1 16. Rxf1 f6 $15) 14... Na2 {[%emt 0:02:27]} (14... Nd3+ $142 15. Bxd3 dxe4) 15. Qa5 {[%emt 0:05:35]} (15. Rxa2 $6 dxe4 16. Qa5 Bb7 $18) 15... Bb7 {[%emt 0:02:57]} 16. Rxa2 {[%emt 0:07:11]} dxe4 {[%emt 0:00:07]} 17. Qxa7 {[%emt 0:00:34]} c5 {[%emt 0:03:15]} 18. Be2 {[%emt 0:01:09]} (18. Be3 $18) 18... Qh4+ $16 {[%emt 0:01:58]} 19. g3 {[%emt 0:00:11]} Qh3 {[%emt 0:00:12]} 20. Bf1 {[%emt 0:05:53] Dodges Qg2} (20. Be3 g5 $16) (20. Qa4 $142 {[%cal Ra4e8]} Re6 21. Bf1) 20... Qd7 {[%emt 0:02:18]} (20... Qg4 $16 {was worth a try.}) 21. Be3 $36 {[%emt 0:01:45][%cal Ob2b4,Bc1e3,Be3f4,Bf4g5][%mdl 2080] Strongly threatening b4! White is on the roll.} g5 {[%emt 0:04:53] ...gxf4 is the strong threat.} 22. b3 {[%emt 0:04:11]} (22. fxg5 $6 Re6 23. h4 (23. Bxc5 $2 Ra6 $19) 23... Bg7 (23... Ra6 $2 24. Qxa6 Bxa6 25. Bh3 $18)) 22... gxf4 {[%emt 0:00:16]} 23. Rd2 {[%emt 0:00:13]} (23. Bxc5 $2 Bxc5 (23... Rxe5 24. Bd4 $19) 24. Qxc5 e3 25. gxf4 Rd8 (25... Bxh1 $2 26. Qxe3 Kb8 27. Bh3 $19) 26. Qxe3 Qd1+ (26... Bxh1 27. Bh3 $16) 27. Kf2 Bxh1 $19) (23. gxf4 Rg8 24. Qa4 (24. Bxc5 $2 Rd8 $19) 24... Bc6 25. Qa6+ Bb7 $14) (23. Bxf4 $16 {Threatens to win with Rd2.} Qg4 24. Be2 (24. Bg2 Re6 $16)) 23... Qg4 {[%emt 0:01:00]} ({Black should play} 23... Qf5 $1 $14 24. gxf4 Rg8) 24. Bxf4 {[%emt 0:03:31] Hoping for Bg2. White is more active.} (24. gxf4 $2 Qf3 25. Re2 Qxh1 $19) 24... Qf3 {[%emt 0:07:19]} (24... h5 $16 {is a better chance.}) 25. Bh3+ {[%emt 0:00:19]} Re6 {[%emt 0:00:06]} 26. Rf1 {[%emt 0:00:13]} (26. Bxe6+ fxe6 27. Rf1 Qxb3 $11) 26... Qxb3 {[%emt 0:00:21]} (26... Qh5 $18 27. Bxe6+ fxe6) 27. Bg5 {[%emt 0:01:06] Weighted Error Value: White=0.22 (precise) /Black=1.01.  Loses game:     	---       	Black=1      Mistake:       	White=3     	Black=6      Inaccurate:     	White=2     	---        OK:         	White=4     	Black=6      Best:        	White=4     	Black=1      Strong:       	White=2     	---} ({Weaker is} 27. Bxe6+ fxe6 28. Bg5 Be7 29. Bxe7 Qe3+ 30. Kd1 Qb3+ 31. Ke1 (31. Ke2 Qxc4+ 32. Kf2 e3+ 33. Kxe3 Qxf1 $17) 31... Qe3+ 32. Re2 (32. Kd1 Qb3+ 33. Ke1 $11) 32... Qc3+ 33. Kf2 (33. Rd2 $2 e3 $19) 33... Qf3+ 34. Ke1 Qc3+ 35. Kf2 (35. Rd2 $2 e3 $19) 35... Qf3+ 36. Ke1 Qc3+ $11) 1-0

[Event "46th Barbera del Valles Open-A 2024"]
[Site "Barbera del Valles"]
[Date "2024.07.06"]
[Round "3.6"]
[White "Suvradeepta, Das"]
[Black "Alsina Leal, Daniel"]
[Result "0-1"]
[ECO "B41"]
[WhiteElo "2114"]
[BlackElo "2512"]
[Annotator "TA"]
[PlyCount "76"]
[EventDate "2024.06.25"]
[EventType "swiss"]
[EventCountry "ESP"]
[SourceTitle "playchess.com"]
[Source "ChessBase"]
[SourceQuality "1"]
[TimeControl "5400+30"]

{[%evp 14,76,37,24,32,37,60,52,60,51,65,66,63,39,40,39,55,39,50,51,62,50,41,14,10,15,10,5,5,23,14,10,19,16,24,-52,-71,-89,-89,-100,-93,-102,-90,-124,-119,-125,-121,-114,-91,-103,-69,-141,-101,-182,-150,-239,-214,-656,-658,-645,-656,-709,-691,-701,-691]} 1. d4 {[%emt 0:00:11]} Nf6 {[%emt 0:00:07]} 2. c4 {[%emt 0:00:18]} e6 {[%emt 0:00:09]} 3. Nf3 {[%emt 0:00:13]} c5 {[%emt 0:00:25]} 4. Nc3 {[%emt 0:02:25]} cxd4 {[%emt 0:02:37]} 5. Nxd4 {[%emt 0:00:05]} a6 {[%emt 0:02:51]} 6. e4 {[%emt 0:02:29]} Qc7 {[%emt 0:01:50]} 7. Be2 {[%emt 0:01:25]} b6 {[%emt 0:02:54]} 8. O-O {[%emt 0:02:01][%cal Oe4e5] Strongly threatening e5!} Bb7 {[%emt 0:00:20]} 9. f3 {[%emt 0:06:44]} Bd6 {[%emt 0:11:46]} 10. Kh1 {[%emt 0:03:29][%cal Oc3b5] [#] aiming for Ncb5!} Be7 {[%emt 0:03:00] White is slightly better.} (10... Bxh2 $2 {loses.} 11. f4 $18) 11. Be3 {[%emt 0:02:46]} d6 {[%emt 0:00:41]} 12. Rc1 {[%emt 0:04:46]} O-O {[%emt 0:01:38]} 13. b4 {[%emt 0:01:31]} Nbd7 {[%emt 0:01:43]} 14. Qd2 {[%emt 0:01:11]} Rac8 {[%emt 0:01:13]} 15. Rfd1 {[%emt 1:08:26]} Qb8 {[%emt 0:03:01]} 16. Nb3 {[%emt 0:00:00]} Rfe8 {[%emt 0:06:48][%cal Od6d5]} 17. Bf1 {[%emt 0:00:00]} h6 {[%emt 0:19:23]} 18. Qf2 {[%emt 0:00:00]} d5 {[%emt 0:06:37]} 19. cxd5 {[%emt 0:00:00]} exd5 {[%emt 0:01:28]} 20. Nxd5 {[%emt 0:00:00]} (20. b5 {keeps more tension.} Ba3 21. bxa6 Bxc1 22. Rxc1 Ba8 23. exd5 Nxd5 24. Bd4) 20... Nxd5 {[%emt 0:02:28]} 21. exd5 {[%emt 0:00:00]} Rxc1 {[%emt 0:01:27]} 22. Nxc1 {[%emt 0:00:00]} Bxb4 {[%emt 0:00:48]} 23. Bxb6 {[%emt 0:00:00]} Bd6 {[%emt 0:13:43]} 24. Be3 {[%emt 0:00:00]} (24. Ne2 $11) 24... Bxh2 $15 {[%emt 0:05:15] And now ...Bg3 would win.} 25. d6 {[%emt 0:00:00]} Bxd6 {[%emt 0:01:39] ...Bg3 is the strong threat.} 26. Qd2 {[%emt 0:00:00]} Re6 {[%emt 0:06:54]} 27. Bc4 {[%emt 0:00:00] [#]} Rf6 {[%emt 0:00:06] Hoping for ...Qe8.} 28. Ne2 {[%emt 0:00:00]} Ne5 {[%emt 0:00:50]} 29. Bd5 {[%emt 0:00:00]} Bxd5 {[%emt 0:01:55]} 30. Qxd5 {[%emt 0:00:00]} Ng6 {[%emt 0:00:48]} 31. Nc3 {[%emt 0:00:00]} Bf4 {[%emt 0:01:01]} 32. Qa5 {[%emt 0:00:00]} Bc7 {[%emt 0:00:22]} (32... Bxe3 $2 {is the wrong capture.} 33. Rd8+ $18) 33. Qa3 {[%emt 0:00:46]} (33. Qa4 $17) 33... Re6 $19 {[%emt 0:00:31]} 34. Ne4 {[%emt 0:00:49]} (34. Qc1 $17 {might work better.}) 34... Qb5 {[%emt 0:00:33]} 35. Kg1 $2 {[%emt 0:03:26]} (35. Qc5) 35... Qh5 {[%emt 0:00:27] Threatens to win with ...Rxe4. Black is clearly winning.} 36. Qc5 {[%emt 0:00:30]} Qh2+ {[%emt 0:00:19]} 37. Kf2 {[%emt 0:00:06]} Nh4 {[%emt 0:00:30] Dodges Qf5} 38. Rg1 {[%emt 0:00:37]} Rg6 {[%emt 0:00:23] Weighted Error Value: White=0.39/Black=0.06 (flawless) .  Mistake:       	White=5     	---        Inaccurate:     	White=2     	Black=1      OK:         	White=9     	Black=12     Best:        	White=2     	Black=4} 0-1

[Event "46th Barbera del Valles Open-A 2024"]
[Site "Barbera del Valles"]
[Date "2024.07.06"]
[Round "3.7"]
[White "Ayats Llobera, Gerard"]
[Black "Thakur, Akash"]
[Result "1/2-1/2"]
[ECO "C95"]
[WhiteElo "2466"]
[BlackElo "2233"]
[Annotator "TA"]
[PlyCount "55"]
[EventDate "2024.06.25"]
[EventType "swiss"]
[EventCountry "ESP"]
[SourceTitle "playchess.com"]
[Source "ChessBase"]
[SourceQuality "1"]
[TimeControl "5400+30"]

{[%evp 27,55,14,16,16,7,0,0,0,0,0,4,8,13,10,20,3,3,1,3,0,18,0,20,0,9,-32,0,0,44,32]} 1. e4 {[%emt 0:00:02]} e5 {[%emt 0:00:08]} 2. Nf3 {[%emt 0:00:03]} Nc6 {[%emt 0:00:11]} 3. Bb5 {[%emt 0:00:05][%cal Bf1b5,Bb5a4,Ba4b3,Bb3c2,Bc2d3][%mdl 32]} a6 {[%emt 0:00:05]} 4. Ba4 {[%emt 0:00:03]} Nf6 {[%emt 0:00:09]} 5. O-O {[%emt 0:00:03]} Be7 {[%emt 0:00:07]} 6. Re1 {[%emt 0:00:04]} b5 {[%emt 0:00:08]} 7. Bb3 {[%emt 0:00:02]} d6 {[%emt 0:00:06]} 8. c3 {[%emt 0:00:04]} O-O {[%emt 0:00:06]} 9. h3 {[%emt 0:00:02]} Re8 {[%emt 0:04:28]} 10. d4 {[%emt 0:00:37]} Bf8 {[%emt 0:00:20]} 11. Nbd2 {[%emt 0:00:05]} Bb7 {[%emt 0:00:21]} 12. Bc2 {[%emt 0:01:23]} Nb8 {[%emt 0:06:48]} 13. a4 {[%emt 0:03:45]} Nbd7 {[%emt 0:01:14]} 14. Bd3 {[%emt 0:00:23]} c6 {[%emt 0:12:15]} 15. b4 {[%emt 0:00:06]} Qc7 {[%emt 0:02:56]} 16. Qb3 {[%emt 0:02:56]} d5 {[%emt 0:07:09]} 17. dxe5 {[%emt 0:09:15] The position is equal.} Nxe5 {[%emt 0:02:54]} 18. Nxe5 {[%emt 0:00:22]} Rxe5 {[%emt 0:15:47]} 19. Nf3 {[%emt 0:03:14] [#] And now Bf4 would win.} Ree8 {[%emt 0:00:53]} 20. e5 {[%emt 0:01:27]} Ne4 {[%emt 0:00:13]} 21. Qc2 {[%emt 0:08:23]} c5 {[%emt 0:01:06]} 22. bxc5 {[%emt 0:11:25]} Bxc5 {[%emt 0:01:43]} 23. Be3 {[%emt 0:00:40]} bxa4 {[%emt 0:10:02]} 24. Rxa4 {[%emt 0:03:51]} Rec8 {[%emt 0:00:26]} 25. c4 {[%emt 0:54:40]} g6 26. Raa1 {[%emt 0:00:30]} Bxe3 27. Rxe3 {[%cal Oe5e6]} Qe7 28. Qd1 {[%emt 0:01:00] Weighted Error Value: White=0.10 (very precise) /Black=0.12 (very precise) .  Inaccurate:     	White=1     	Black=2      OK:         	White=4     	Black=3} 1/2-1/2

[Event "46th Barbera del Valles Open-A 2024"]
[Site "Barbera del Valles"]
[Date "2024.07.06"]
[Round "3.8"]
[White "Escobar Forero, Alder"]
[Black "Singh, Siddharth"]
[Result "1-0"]
[ECO "C15"]
[WhiteElo "2426"]
[BlackElo "2050"]
[Annotator "TA"]
[PlyCount "87"]
[EventDate "2024.06.25"]
[EventType "swiss"]
[EventCountry "ESP"]
[SourceTitle "playchess.com"]
[Source "ChessBase"]
[SourceQuality "1"]
[TimeControl "5400+30"]

{[%evp 11,86,14,19,-2,25,0,30,28,41,8,93,87,54,78,122,116,95,49,61,51,72,62,60,52,64,66,68,70,147,151,159,139,133,129,131,143,129,126,126,146,160,172,177,166,199,197,274,264,777,770,704,417,408,414,442,412,490,452,992,997,1167,1081,6412,1040,29981,29982,29989,29990,29990,29991,29991,29992,29993,29994,29998,29999,29999]} 1. e4 {[%emt 0:00:05]} e6 {[%emt 0:00:08]} 2. d4 {[%emt 0:00:18]} d5 {[%emt 0:00:07]} 3. Nc3 {[%emt 0:00:07]} Bb4 {[%emt 0:00:04]} 4. a3 {[%emt 0:00:12]} Bxc3+ {[%emt 0:00:07]} 5. bxc3 {[%emt 0:00:03]} Ne7 {[%emt 0:00:23]} 6. Bd3 {[%emt 0:03:13]} c5 {[%emt 0:01:56]} 7. dxc5 {[%emt 0:03:26]} Qa5 {[%emt 0:02:52] Threatens to win with ...dxe4.} 8. Nf3 {[%emt 0:00:38]} Nd7 {[%emt 0:02:18] White must now prevent ...dxe4.} 9. exd5 {[%emt 0:12:24] White has an edge.} Nxd5 {[%emt 0:00:38]} 10. O-O {[%emt 0:00:08]} h6 {[%emt 0:09:50]} (10... Qxc3 $11 11. Bd2 Qxc5) 11. Re1 {[%emt 0:10:32][%cal Oc5c6]} O-O {[%emt 0:04:07]} 12. c4 {[%emt 0:13:11]} N5f6 {[%emt 0:01:06]} 13. Bd2 {[%emt 0:01:52]} Qc7 {[%emt 0:07:55]} 14. Qc1 {[%emt 0:02:16]} (14. c6 $16 Qxc6 15. Nd4) 14... Nxc5 $14 {[%emt 0:07:54] [#]} 15. Bxh6 $1 {[%emt 0:10:32]} Nxd3 $1 {[%emt 0:08:44]} 16. Qg5 {[%emt 0:04:18][%csl Gh6][%cal Rg5g7] The board is on fire.} ({Much weaker is} 16. cxd3 $6 gxh6 17. Qxh6 Nh7 $11) 16... Ne8 {[%emt 0:04:49]} 17. cxd3 {[%emt 0:01:04]} f6 {[%emt 0:03:40]} 18. Qg6 {[%emt 0:02:41]} Qf7 {[%emt 0:42:52]} 19. Qg3 {[%emt 0:00:22] White has more active pieces. Black is weak on the dark squares} (19. Qxf7+ {simplifies} Rxf7 20. Bd2 Rc7 21. Bf4) 19... Kh7 {[%emt 0:00:00] Black is on the road to losing.} (19... e5 $14) 20. Bd2 $16 {[%emt 0:00:31][%cal Bh6d2,Bd2b4,Bb4d6][%mdl 32] Strongly threatening Qh4+.} Qg6 {[%emt 0:00:00]} 21. Qh4+ {[%emt 0:03:00]} Kg8 {[%emt 0:00:00]} 22. d4 $36 {[%emt 0:03:37][%mdl 2048] White is really pushing.} Nd6 {[%emt 0:00:00]} 23. Bb4 {[%emt 0:01:35]} Nf5 {[%emt 0:00:00]} 24. Qe4 {[%emt 0:01:10]} Re8 {[%emt 0:00:00]} 25. a4 {[%emt 0:05:56][%cal Ba3a4,Ba4a5][%mdl 32]} Rb8 {[%emt 0:00:00] [#]} 26. Bd6 $1 {[%emt 0:01:09]} Ra8 {[%emt 0:00:00]} 27. a5 {[%emt 0:00:20]} Kf7 {[%emt 0:00:00]} 28. Bc5 {[%emt 0:00:44]} a6 {[%emt 0:00:00]} (28... Nh6 {is a better defense.} 29. Nd2 Rd8) 29. Rab1 $18 {[%emt 0:00:45]} Rd8 $2 {[%emt 0:00:00]} (29... Kg8 30. Rb6 Ne7) 30. Rxb7+ {[%emt 0:00:21]} Kg8 {[%emt 0:00:00] [#]} 31. Rxg7+ $3 {[%emt 0:00:50][%mdl 512]} Kxg7 {[%emt 0:00:00]} 32. Qxa8 {[%emt 0:00:09]} Rh8 {[%emt 0:00:00]} 33. Qa7+ {[%emt 0:00:34]} Kh6 {[%emt 0:00:00]} 34. Qc7 {[%emt 0:02:19]} e5 {[%emt 0:00:00]} (34... Qg7 $142 35. Qxg7+ Kxg7) 35. dxe5 {[%emt 0:00:31]} Rg8 {[%emt 0:00:00]} 36. g3 {[%emt 0:00:56]} Qh5 {[%emt 0:05:21]} 37. Qc6 {[%emt 0:01:58]} Rg6 {[%emt 0:03:05]} 38. exf6 {[%emt 0:03:52] White mates.} Bd7 {[%emt 0:00:41]} 39. Bf8+ {[%emt 0:00:06]} Kh7 {[%emt 0:00:03][%cal Bh6h7,Bh7g8,Bg8h8][%mdl 32]} 40. Qxd7+ {[%emt 0:00:05]} Kg8 {[%emt 0:00:06]} 41. f7+ {[%emt 0:01:12]} Kh8 {[%emt 0:00:13]} 42. Ba3 {[%emt 0:00:46]} Nxg3 {[%emt 0:00:21]} 43. f8=Q+ {[%emt 0:00:27]} Rg8 {[%emt 0:00:06]} 44. Qdg7# {[%emt 0:00:16] Weighted Error Value: White=0.13 (very precise) /Black=0.37.  Mistake:       	White=1     	Black=5      Inaccurate:     	White=1     	Black=3      OK:         	White=15    	Black=7      Best:        	White=3     	Black=3      Strong:       	---       	Black=1      Brilliant:      	White=1     	---} 1-0

[Event "46th Barbera del Valles Open-A 2024"]
[Site "Barbera del Valles"]
[Date "2024.07.06"]
[Round "3.9"]
[White "Munoz, Miguel"]
[Black "Nagare Kaivalya Sandip"]
[Result "1/2-1/2"]
[ECO "C77"]
[WhiteElo "2364"]
[BlackElo "2109"]
[Annotator "TA"]
[PlyCount "66"]
[EventDate "2024.06.25"]
[EventType "swiss"]
[EventCountry "ESP"]
[SourceTitle "playchess.com"]
[Source "ChessBase"]
[SourceQuality "1"]
[TimeControl "5400+30"]

{[%evp 13,66,0,0,-2,-4,-9,-9,-22,-2,-20,-7,-13,-25,-43,-31,-66,-26,-24,-3,-25,-7,-25,-4,-13,0,-49,-45,-45,-40,-80,-75,-80,0,0,0,0,0,-22,79,95,126,0,0,0,0,0,0,0,0,0,0,0,0,0,0]} 1. e4 {[%emt 0:00:04]} e5 {[%emt 0:00:04]} 2. Nf3 {[%emt 0:00:26]} Nc6 {[%emt 0:00:05]} 3. Bb5 {[%emt 0:00:19]} a6 {[%emt 0:00:07]} 4. Ba4 {[%emt 0:00:05]} Nf6 {[%emt 0:00:04]} 5. Bxc6 {[%emt 0:00:12]} dxc6 {[%emt 0:00:11]} 6. d3 {[%emt 0:00:22]} Bd6 {[%emt 0:00:06]} 7. Nbd2 {[%emt 0:00:30]} Be6 {[%emt 0:00:11]} 8. b3 {[%emt 0:00:07]} Qe7 {[%emt 0:00:25]} 9. Bb2 {[%emt 0:00:07]} Nd7 {[%emt 0:00:07]} 10. Qe2 {[%emt 0:00:48]} O-O-O {[%emt 0:00:13]} 11. O-O-O {[%emt 0:00:18]} Rhe8 {[%emt 0:10:18]} 12. Kb1 {[%emt 0:01:51]} f6 {[%emt 0:01:00]} 13. Nf1 {[%emt 0:02:14]} Ba3 {[%emt 0:02:50]} 14. Ba1 {[%emt 0:00:56]} Bc5 {[%emt 0:03:11]} 15. Ne3 {[%emt 0:04:17]} Bxe3 {[%emt 0:00:15]} 16. fxe3 {[%emt 0:02:01]} c5 {[%emt 0:01:43]} 17. h3 {[%emt 0:00:19]} Kb8 {[%emt 0:01:01]} 18. Rhe1 {[%emt 0:02:07]} Bf7 {[%emt 0:00:30]} 19. Qf2 {[%emt 0:01:13]} (19. Bb2 $11 {might be stronger.}) 19... a5 $15 {[%emt 0:12:11][%cal Ba6a5,Ba5a4][%mdl 32]} 20. g4 {[%emt 0:09:42] [#]} a4 $1 {[%emt 0:05:22]} 21. Nh4 {[%emt 0:00:54] [#]} (21. Qd2 axb3) 21... c4 $1 {[%emt 0:01:26][%cal Ra4b3]} 22. Nf5 {[%emt 0:04:40]} (22. dxc4 Qb4) 22... Qf8 {[%emt 0:04:10]} (22... Qb4 $17 23. dxc4 g6 (23... Bxc4 24. Nxg7 Rg8 25. Nh5 $11)) 23. dxc4 $11 {[%emt 0:02:39]} Nc5 {[%emt 0:03:43][%cal Of7c4]} 24. Qf3 {[%emt 0:01:49]} axb3 {[%emt 0:01:45]} 25. axb3 {[%emt 0:00:06] [#]} Bxc4 {[%emt 0:01:07]} 26. bxc4 $16 {[%emt 0:07:23]} (26. Rxd8+ Rxd8 27. bxc4 Nxe4 28. Qxe4 Qb4+ 29. Ka2 Qxe1 $17) 26... Na4 {[%emt 0:04:11] [#] Strongly threatening ...Qb4+.} 27. Rxd8+ {[%emt 0:03:22]} (27. Nd4 $1 $16) 27... Rxd8 $11 {[%emt 0:00:13] The position is equal.} 28. Rd1 {[%emt 0:00:11] Threatens to win with Rxd8+.} Qb4+ {[%emt 0:01:26]} 29. Kc1 {[%emt 0:08:19]} Qa3+ {[%emt 0:00:04]} 30. Kb1 {[%emt 0:00:08]} Qb4+ {[%emt 0:00:16]} 31. Kc1 {[%emt 0:03:46]} Qa3+ {[%emt 0:00:05]} 32. Kb1 {[%emt 0:00:06]} Qb4+ {[%emt 0:00:03]} 33. Kc1 {[%emt 0:00:09]} Qa3+ {[%emt 0:00:05] Weighted Error Value: White=0.14 (very precise) /Black=0.14 (very precise) .  Mistake:       	White=2     	Black=2      Inaccurate:     	White=2     	Black=2      OK:         	White=8     	Black=10     Best:        	White=2     	Black=5} 1/2-1/2

[Event "46th Barbera del Valles Open-A 2024"]
[Site "Barbera del Valles"]
[Date "2024.07.06"]
[Round "3.10"]
[White "Blasco Cardona, Pol"]
[Black "Valenzuela Gomez, Fernando"]
[Result "0-1"]
[ECO "B90"]
[WhiteElo "2004"]
[BlackElo "2358"]
[Annotator "TA"]
[PlyCount "50"]
[EventDate "2024.06.25"]
[EventType "swiss"]
[EventCountry "ESP"]
[SourceTitle "playchess.com"]
[Source "ChessBase"]
[SourceQuality "1"]
[TimeControl "5400+30"]

{[%evp 12,50,13,6,33,13,17,0,0,0,6,11,18,0,0,0,20,25,43,15,19,31,34,-26,24,-53,-47,-47,-45,-85,-77,-58,-54,-329,-325,-340,-283,-858,-835,-865,-656]} 1. e4 {[%emt 0:00:18]} c5 {[%emt 0:05:52]} 2. Nf3 {[%emt 0:00:09]} d6 {[%emt 0:00:19]} 3. d4 {[%emt 0:00:09]} cxd4 {[%emt 0:00:07]} 4. Nxd4 {[%emt 0:00:03]} Nf6 {[%emt 0:00:06]} 5. Nc3 {[%emt 0:00:07]} a6 {[%emt 0:00:09]} 6. h3 {[%emt 0:00:05]} e5 {[%emt 0:00:25]} 7. Nde2 {[%emt 1:33:09]} h5 {[%emt 1:27:02]} 8. Bg5 {[%emt 0:00:00]} Be6 {[%emt 0:00:00]} 9. Bxf6 {[%emt 0:00:00]} Qxf6 {[%emt 0:00:00] The position is equal.} 10. Nd5 {[%emt 0:00:00]} Qd8 {[%emt 0:01:30]} 11. Qd3 {[%emt 0:02:00]} Nd7 {[%emt 0:00:30][%cal Bb8d7,Bd7c5,Bc5e6,Be6f4][%mdl 32]} 12. O-O-O {[%emt 0:00:00]} g6 {[%emt 0:00:30]} 13. Kb1 {[%emt 0:01:00]} Rc8 {[%emt 0:00:30]} 14. Nec3 {[%emt 0:00:30]} Bh6 {[%emt 0:00:30]} 15. Be2 {[%emt 0:00:30]} O-O {[%emt 0:00:30]} 16. h4 {[%emt 0:00:00][%cal Og2g4]} Nc5 {[%emt 0:00:00]} 17. Qg3 {[%emt 0:00:00]} (17. Qf3 $1 $14) 17... Kh7 {[%emt 0:00:00]} ({Better is} 17... Bxd5 18. Rxd5 Ne6) 18. Rhf1 {[%emt 0:00:00]} ({White should play} 18. f3 $11) 18... Bxd5 $15 {[%emt 0:00:00]} 19. Rxd5 {[%emt 0:00:00]} Qc7 {[%emt 0:00:00][%cal Oc5e4] [#] Hoping for ...Nxe4!} 20. Bd3 {[%emt 0:00:00]} Ne6 {[%emt 0:00:00]} 21. Qf3 {[%emt 0:00:00]} Qb6 {[%emt 0:00:00]} 22. Na4 {[%emt 0:00:00][%mdl 8192] This costs White the game.} (22. Be2 $15) 22... Qb4 $19 {[%emt 0:00:00]} 23. b3 {[%emt 0:00:00]} Nf4 {[%emt 0:00:00]} 24. a3 $2 {[%emt 0:00:00] [#]} (24. c3 Qa3 25. Ra5) 24... Qxa3 {[%emt 0:00:00]} 25. Nb6 {[%emt 0:00:00]} Rc3 {[%emt 0:00:00] Weighted Error Value: White=0.62/Black=0.12 (very precise) .  Loses game:     	White=1     	---        Mistake:       	White=3     	Black=1      Inaccurate:     	White=2     	---        OK:         	White=6     	Black=6      Best:        	---       	Black=2} 0-1